[Event "*** Titled Tuesday Blitz"]
[Site "Chess.com"]
[Date "2020.10.27"]
[Round "4"]
[White "Ermito2020"]
[Black "Sergey85Rodchenkov"]
[Result "1/2-1/2"]
[WhiteElo "2648"]
[BlackElo "2454"]
[TimeControl "180+1"]
[EndTime "10:39:48 PDT"]
[Termination "Game drawn by repetition"]

1. e4 {[%clk 0:03:00.9]} 1... c5 {[%clk 0:02:59.7]} 2. Nf3 {[%clk 0:03:01.2]}
2... d6 {[%clk 0:03:00.1]} 3. d4 {[%clk 0:03:01.7]} 3... cxd4 {[%clk 0:03:00.5]}
4. Nxd4 {[%clk 0:03:02.6]} 4... Nf6 {[%clk 0:03:01]} 5. Nc3 {[%clk 0:03:03.1]}
5... a6 {[%clk 0:03:01.6]} 6. Nb3 {[%clk 0:03:03.3]} 6... e5 {[%clk 0:02:59.7]}
7. Bg5 {[%clk 0:03:02.2]} 7... Nbd7 {[%clk 0:02:58.8]} 8. Qd3 {[%clk 0:02:48.3]}
8... Be7 {[%clk 0:02:56.5]} 9. O-O-O {[%clk 0:02:47.7]} 9... Qc7 {[%clk
0:02:56.7]} 10. Kb1 {[%clk 0:02:44.6]} 10... b5 {[%clk 0:02:56.6]} 11. a3 {[%clk
0:02:32.2]} 11... Bb7 {[%clk 0:02:56.5]} 12. Be2 {[%clk 0:02:27.3]} 12... Rc8
{[%clk 0:02:55.7]} 13. g4 {[%clk 0:02:25.9]} 13... Nc5 {[%clk 0:02:36.7]} 14.
Nxc5 {[%clk 0:02:24.5]} 14... Qxc5 {[%clk 0:02:36.9]} 15. Bxf6 {[%clk
0:02:21.6]} 15... Bxf6 {[%clk 0:02:36.5]} 16. Qxd6 {[%clk 0:02:20.9]} 16... Qxd6
{[%clk 0:02:36.6]} 17. Rxd6 {[%clk 0:02:21.8]} 17... O-O {[%clk 0:02:31.9]} 18.
Nd5 {[%clk 0:02:14.9]} 18... Bh4 {[%clk 0:02:29]} 19. Rb6 {[%clk 0:02:03.7]}
19... Rb8 {[%clk 0:02:06.5]} 20. Rd1 {[%clk 0:01:39.9]} 20... Bxf2 {[%clk
0:02:01]} 21. Rd6 {[%clk 0:01:39.7]} 21... Bc5 {[%clk 0:01:56]} 22. Rd7 {[%clk
0:01:39.1]} 22... Rfe8 {[%clk 0:01:40.9]} 23. b4 {[%clk 0:01:38]} 23... Bf8
{[%clk 0:01:37.8]} 24. c4 {[%clk 0:01:37.4]} 24... Bc6 {[%clk 0:01:31.5]} 25.
Rc7 {[%clk 0:01:32]} 25... Rec8 {[%clk 0:01:31.5]} 26. Rxc8 {[%clk 0:01:29.7]}
26... Rxc8 {[%clk 0:01:31.2]} 27. c5 {[%clk 0:01:27.6]} 27... h6 {[%clk
0:01:17]} 28. Kc2 {[%clk 0:01:25.6]} 28... g6 {[%clk 0:01:12.5]} 29. h4 {[%clk
0:01:18.9]} 29... Kg7 {[%clk 0:01:04]} 30. h5 {[%clk 0:01:18.8]} 30... Rd8
{[%clk 0:00:53.6]} 31. Bf3 {[%clk 0:01:14.8]} 31... Ra8 {[%clk 0:00:50]} 32. Kb3
{[%clk 0:01:08.2]} 32... Rd8 {[%clk 0:00:46.2]} 33. Rf1 {[%clk 0:01:02.8]} 33...
Bd7 {[%clk 0:00:40.8]} 34. Nc7 {[%clk 0:00:56.5]} 34... Bc8 {[%clk 0:00:31.5]}
35. Nd5 {[%clk 0:00:43.9]} 35... Be6 {[%clk 0:00:30.5]} 36. Kc3 {[%clk
0:00:43.9]} 36... Ra8 {[%clk 0:00:29.5]} 37. a4 {[%clk 0:00:39.7]} 37... bxa4
{[%clk 0:00:26.4]} 38. Ra1 {[%clk 0:00:39.6]} 38... a5 {[%clk 0:00:26]} 39. Rxa4
{[%clk 0:00:25.8]} 39... axb4+ {[%clk 0:00:25.4]} 40. Kxb4 {[%clk 0:00:25.9]}
40... Rxa4+ {[%clk 0:00:24.8]} 41. Kxa4 {[%clk 0:00:26]} 41... Bxc5 {[%clk
0:00:25.2]} 42. Kb5 {[%clk 0:00:26.6]} 42... Bd4 {[%clk 0:00:25]} 43. Kc6 {[%clk
0:00:25.9]} 43... Bc8 {[%clk 0:00:23.6]} 44. Kc7 {[%clk 0:00:24.4]} 44... Be6
{[%clk 0:00:21.4]} 45. Kd6 {[%clk 0:00:24.4]} 45... gxh5 {[%clk 0:00:21.4]} 46.
gxh5 {[%clk 0:00:24.3]} 46... Bh3 {[%clk 0:00:20.6]} 47. Ne7 {[%clk 0:00:22.5]}
47... Kf6 {[%clk 0:00:19.9]} 48. Nc6 {[%clk 0:00:17.4]} 48... Be6 {[%clk
0:00:18.6]} 49. Nd8 {[%clk 0:00:10.8]} 49... Bc3 {[%clk 0:00:16.2]} 50. Nxe6
{[%clk 0:00:09.6]} 50... fxe6 {[%clk 0:00:16.8]} 51. Kc5 {[%clk 0:00:10]} 51...
Bd4+ {[%clk 0:00:17.1]} 52. Kd6 {[%clk 0:00:09.8]} 52... Bc3 {[%clk 0:00:16.4]}
53. Kd7 {[%clk 0:00:10]} 53... Kg5 {[%clk 0:00:15.5]} 54. Kxe6 {[%clk 0:00:10]}
54... Kf4 {[%clk 0:00:16.1]} 55. Bh1 {[%clk 0:00:09.8]} 55... Bd4 {[%clk
0:00:15.1]} 56. Kf6 {[%clk 0:00:08.9]} 56... Be3 {[%clk 0:00:15.1]} 57. Kg6
{[%clk 0:00:08.2]} 57... Kg3 {[%clk 0:00:14.8]} 58. Kf5 {[%clk 0:00:08.5]} 58...
Bf4 {[%clk 0:00:15.3]} 59. Ke6 {[%clk 0:00:08]} 59... Kf2 {[%clk 0:00:15.9]} 60.
Kf5 {[%clk 0:00:07.7]} 60... Kg1 {[%clk 0:00:16.5]} 61. Bf3 {[%clk 0:00:07.3]}
61... Kf2 {[%clk 0:00:17.1]} 62. Bd1 {[%clk 0:00:07.7]} 62... Ke3 {[%clk
0:00:17.3]} 63. Bc2 {[%clk 0:00:07]} 63... Kd2 {[%clk 0:00:17.5]} 64. Ba4 {[%clk
0:00:06.8]} 64... Ke3 {[%clk 0:00:17.7]} 65. Be8 {[%clk 0:00:07.7]} 65... Kd4
{[%clk 0:00:17.9]} 66. Bg6 {[%clk 0:00:08]} 66... Ke3 {[%clk 0:00:18.5]} 67. Bf7
{[%clk 0:00:08.4]} 67... Kd4 {[%clk 0:00:18.1]} 68. Bg6 {[%clk 0:00:09.3]} 68...
Ke3 {[%clk 0:00:18.5]} 69. Bf7 {[%clk 0:00:09.7]} 69... Kd4 {[%clk 0:00:19]} 70.
Bg6 {[%clk 0:00:10]} 1/2-1/2

[Event "*** Titled Tuesday Blitz"]
[Site "Chess.com"]
[Date "2020.10.27"]
[Round "4"]
[White "Iskusnyh"]
[Black "vugarrasulov"]
[Result "0-1"]
[WhiteElo "2557"]
[BlackElo "2858"]
[TimeControl "180+1"]
[EndTime "10:39:51 PDT"]
[Termination "vugarrasulov won on time"]

1. d4 {[%clk 0:03:00.9]} 1... Nf6 {[%clk 0:03:00.4]} 2. c4 {[%clk 0:03:00.2]}
2... e6 {[%clk 0:03:00.8]} 3. g3 {[%clk 0:03:00.1]} 3... c5 {[%clk 0:03:00.6]}
4. Nf3 {[%clk 0:03:00.1]} 4... d5 {[%clk 0:02:57.1]} 5. cxd5 {[%clk 0:02:57.9]}
5... exd5 {[%clk 0:02:58]} 6. Bg2 {[%clk 0:02:56.4]} 6... Nc6 {[%clk 0:02:58.9]}
7. O-O {[%clk 0:02:55.2]} 7... Be7 {[%clk 0:02:59.5]} 8. dxc5 {[%clk 0:02:52.9]}
8... O-O {[%clk 0:02:59.9]} 9. a3 {[%clk 0:02:38.6]} 9... a5 {[%clk 0:02:57.5]}
10. Nc3 {[%clk 0:02:37.6]} 10... Bxc5 {[%clk 0:02:53.7]} 11. Bg5 {[%clk
0:02:35.2]} 11... d4 {[%clk 0:02:53.9]} 12. Ne4 {[%clk 0:01:54.6]} 12... Be7
{[%clk 0:02:53.6]} 13. Bxf6 {[%clk 0:01:52.4]} 13... Bxf6 {[%clk 0:02:54.5]} 14.
Rc1 {[%clk 0:01:51.6]} 14... Re8 {[%clk 0:02:52.4]} 15. Nxf6+ {[%clk 0:01:39.4]}
15... Qxf6 {[%clk 0:02:53.3]} 16. Qd2 {[%clk 0:01:34.7]} 16... Bg4 {[%clk
0:02:47.8]} 17. Rfe1 {[%clk 0:01:33.1]} 17... Rad8 {[%clk 0:02:44.1]} 18. h3
{[%clk 0:01:30.7]} 18... Bh5 {[%clk 0:02:42.8]} 19. Rc5 {[%clk 0:01:29.7]} 19...
Bg6 {[%clk 0:02:35.7]} 20. Qf4 {[%clk 0:01:15.1]} 20... Qxf4 {[%clk 0:02:26]}
21. gxf4 {[%clk 0:01:14.4]} 21... Be4 {[%clk 0:02:26.4]} 22. Ne5 {[%clk
0:01:08.6]} 22... Nxe5 {[%clk 0:02:08]} 23. fxe5 {[%clk 0:01:06.4]} 23... b6
{[%clk 0:02:01.9]} 24. Rb5 {[%clk 0:01:03.4]} 24... Bxg2 {[%clk 0:02:01.3]} 25.
Kxg2 {[%clk 0:01:03.2]} 25... Re6 {[%clk 0:02:01.6]} 26. Rd1 {[%clk 0:00:56.2]}
26... h5 {[%clk 0:01:52.2]} 27. Rd3 {[%clk 0:00:54.6]} 27... Kh7 {[%clk
0:01:44.3]} 28. e3 {[%clk 0:00:53.3]} 28... dxe3 {[%clk 0:01:40.1]} 29. Rxe3
{[%clk 0:00:52.8]} 29... Rd2 {[%clk 0:01:39]} 30. Reb3 {[%clk 0:00:50]} 30... h4
{[%clk 0:01:25.2]} 31. Rxb6 {[%clk 0:00:45.3]} 31... Rxe5 {[%clk 0:01:25.2]} 32.
R3b5 {[%clk 0:00:45]} 32... Rxb5 {[%clk 0:01:12.5]} 33. Rxb5 {[%clk 0:00:44.3]}
33... Kg6 {[%clk 0:01:13.4]} 34. Rxa5 {[%clk 0:00:38.6]} 34... Rxb2 {[%clk
0:01:13.4]} 35. Ra4 {[%clk 0:00:38.3]} 35... Kh5 {[%clk 0:01:09.3]} 36. Rf4
{[%clk 0:00:35]} 36... f6 {[%clk 0:01:07.7]} 37. a4 {[%clk 0:00:34.6]} 37... Ra2
{[%clk 0:01:07.9]} 38. Rb4 {[%clk 0:00:34.5]} 38... g5 {[%clk 0:01:07.3]} 39.
Kf3 {[%clk 0:00:31.7]} 39... f5 {[%clk 0:01:06.2]} 40. Kg2 {[%clk 0:00:31.6]}
40... Ra3 {[%clk 0:01:05.2]} 41. Rb5 {[%clk 0:00:30.6]} 41... f4 {[%clk
0:01:03.7]} 42. a5 {[%clk 0:00:19.8]} 42... Ra1 {[%clk 0:00:51.8]} 43. Rf5
{[%clk 0:00:18.1]} 43... Ra2 {[%clk 0:00:49.8]} 44. Kg1 {[%clk 0:00:16.9]} 44...
Kg6 {[%clk 0:00:47.5]} 45. Rb5 {[%clk 0:00:16.4]} 45... Kf6 {[%clk 0:00:45.3]}
46. Rc5 {[%clk 0:00:16]} 46... Ra3 {[%clk 0:00:42.6]} 47. Rb5 {[%clk 0:00:15.6]}
47... Rxh3 {[%clk 0:00:41.2]} 48. a6 {[%clk 0:00:15.8]} 48... Ra3 {[%clk
0:00:41.6]} 49. Rb6+ {[%clk 0:00:16.1]} 49... Kf5 {[%clk 0:00:42]} 50. Rd6
{[%clk 0:00:15.4]} 50... Kg4 {[%clk 0:00:40.8]} 51. Kg2 {[%clk 0:00:12.3]} 51...
h3+ {[%clk 0:00:41]} 52. Kh2 {[%clk 0:00:11.6]} 52... Ra2 {[%clk 0:00:41.4]} 53.
Kg1 {[%clk 0:00:11]} 53... h2+ {[%clk 0:00:39.2]} 54. Kh1 {[%clk 0:00:10.8]}
54... Rxf2 {[%clk 0:00:37.5]} 55. a7 {[%clk 0:00:10.9]} 55... Ra2 {[%clk
0:00:38]} 56. Rd7 {[%clk 0:00:09.7]} 56... Kg3 {[%clk 0:00:30.7]} 57. Rd1 {[%clk
0:00:07.5]} 57... Rxa7 {[%clk 0:00:28.3]} 58. Rd3+ {[%clk 0:00:07.1]} 58... f3
{[%clk 0:00:28.5]} 59. Rd1 {[%clk 0:00:06.6]} 59... Ra2 {[%clk 0:00:28.5]} 60.
Rf1 {[%clk 0:00:06.1]} 60... Ra3 {[%clk 0:00:23.2]} 61. Rb1 {[%clk 0:00:04.3]}
61... g4 {[%clk 0:00:23.4]} 62. Rf1 {[%clk 0:00:03.5]} 62... Re3 {[%clk
0:00:22.9]} 63. Rd1 {[%clk 0:00:02.6]} 63... f2 {[%clk 0:00:22.3]} 64. Rf1
{[%clk 0:00:02.2]} 64... Re1 {[%clk 0:00:21.7]} 0-1

[Event "*** Titled Tuesday Blitz"]
[Site "Chess.com"]
[Date "2020.10.27"]
[Round "4"]
[White "Yoshikrov"]
[Black "garfio2017"]
[Result "1-0"]
[WhiteElo "2135"]
[BlackElo "2278"]
[TimeControl "180+1"]
[EndTime "10:39:53 PDT"]
[Termination "Yoshikrov won by resignation"]

1. e4 {[%clk 0:03:00.9]} 1... c6 {[%clk 0:02:59]} 2. d4 {[%clk 0:02:59.2]} 2...
d5 {[%clk 0:02:58.1]} 3. exd5 {[%clk 0:02:59.4]} 3... cxd5 {[%clk 0:02:56.7]} 4.
c4 {[%clk 0:02:59.6]} 4... e6 {[%clk 0:02:54.2]} 5. Nc3 {[%clk 0:02:57.8]} 5...
Nf6 {[%clk 0:02:53.4]} 6. Bg5 {[%clk 0:02:57.5]} 6... Be7 {[%clk 0:02:53]} 7.
Nf3 {[%clk 0:02:56.6]} 7... O-O {[%clk 0:02:52.3]} 8. c5 {[%clk 0:02:52.9]} 8...
h6 {[%clk 0:02:48.9]} 9. Bh4 {[%clk 0:02:52.2]} 9... Nc6 {[%clk 0:02:47.9]} 10.
Bb5 {[%clk 0:02:47.8]} 10... Ne4 {[%clk 0:02:46.1]} 11. Bxe7 {[%clk 0:02:41.3]}
11... Qxe7 {[%clk 0:02:31.7]} 12. O-O {[%clk 0:02:34.1]} 12... Nxc3 {[%clk
0:02:24.6]} 13. bxc3 {[%clk 0:02:33.1]} 13... Bd7 {[%clk 0:02:24.9]} 14. Re1
{[%clk 0:02:22.1]} 14... Rac8 {[%clk 0:02:13.4]} 15. Rb1 {[%clk 0:02:11]} 15...
a6 {[%clk 0:02:08.6]} 16. Bd3 {[%clk 0:02:09.7]} 16... Rfe8 {[%clk 0:02:02.2]}
17. Rxb7 {[%clk 0:02:03.5]} 17... Qd8 {[%clk 0:02:00.7]} 18. Ne5 {[%clk
0:01:49]} 18... Nxe5 {[%clk 0:01:59.4]} 19. Rxe5 {[%clk 0:01:44.7]} 19... Bc6
{[%clk 0:01:54.2]} 20. Rb6 {[%clk 0:01:39.9]} 20... a5 {[%clk 0:01:52.9]} 21.
Rxc6 {[%clk 0:01:07.4]} 21... Rxc6 {[%clk 0:01:50.7]} 22. Bb5 {[%clk 0:01:07.6]}
22... Rc8 {[%clk 0:01:49.6]} 23. Bxe8 {[%clk 0:01:07.2]} 23... Qxe8 {[%clk
0:01:49.3]} 24. h3 {[%clk 0:01:03.1]} 24... Rb8 {[%clk 0:01:46]} 25. Re2 {[%clk
0:00:55.9]} 25... a4 {[%clk 0:01:42.5]} 26. Qc1 {[%clk 0:00:49.5]} 26... Qb5
{[%clk 0:01:41.5]} 27. Rc2 {[%clk 0:00:45.9]} 27... Qb1 {[%clk 0:01:34.8]} 28.
Kh2 {[%clk 0:00:38.9]} 28... a3 {[%clk 0:01:30.8]} 29. c4 {[%clk 0:00:32.8]}
29... dxc4 {[%clk 0:01:17.8]} 30. Rxc4 {[%clk 0:00:32.2]} 30... Kf8 {[%clk
0:01:12.6]} 31. Qxa3 {[%clk 0:00:26.5]} 31... Qe4 {[%clk 0:00:58.7]} 32. c6+
{[%clk 0:00:26.4]} 32... Kg8 {[%clk 0:00:54.2]} 33. Qg3 {[%clk 0:00:19.6]} 33...
Rc8 {[%clk 0:00:52.7]} 34. c7 {[%clk 0:00:19.4]} 34... f5 {[%clk 0:00:50.6]} 35.
a4 {[%clk 0:00:17.1]} 35... f4 {[%clk 0:00:48.2]} 36. Qf3 {[%clk 0:00:15.8]}
36... Qf5 {[%clk 0:00:45.5]} 37. Qb7 {[%clk 0:00:14.6]} 37... e5 {[%clk
0:00:44.4]} 38. dxe5 {[%clk 0:00:14.5]} 38... Kh7 {[%clk 0:00:39.7]} 39. Qe4
{[%clk 0:00:13.3]} 39... Qxe4 {[%clk 0:00:39.3]} 40. Rxe4 {[%clk 0:00:14.2]}
40... Rxc7 {[%clk 0:00:40.1]} 41. Rxf4 {[%clk 0:00:14.7]} 41... Re7 {[%clk
0:00:37.5]} 42. Re4 {[%clk 0:00:15]} 42... Kg6 {[%clk 0:00:37.7]} 43. g4 {[%clk
0:00:14.2]} 43... Kg5 {[%clk 0:00:34.7]} 44. Kg3 {[%clk 0:00:14.2]} 44... Ra7
{[%clk 0:00:34]} 45. f4+ {[%clk 0:00:14.5]} 45... Kg6 {[%clk 0:00:32]} 46. f5+
{[%clk 0:00:14.1]} 46... Kf7 {[%clk 0:00:30.5]} 47. Kf4 {[%clk 0:00:14.2]} 47...
Rc7 {[%clk 0:00:28.7]} 48. h4 {[%clk 0:00:14.1]} 48... Rc1 {[%clk 0:00:28.1]}
49. e6+ {[%clk 0:00:12.3]} 49... Ke7 {[%clk 0:00:27.5]} 50. Rb4 {[%clk
0:00:10.9]} 50... Rf1+ {[%clk 0:00:26.4]} 51. Ke5 {[%clk 0:00:10.5]} 51... Re1+
{[%clk 0:00:26.8]} 52. Kd5 {[%clk 0:00:10.8]} 52... Rd1+ {[%clk 0:00:25.9]} 53.
Kc5 {[%clk 0:00:11]} 53... Rc1+ {[%clk 0:00:25.3]} 54. Kb5 {[%clk 0:00:11.4]}
54... Rc8 {[%clk 0:00:24.3]} 55. a5 {[%clk 0:00:10.8]} 55... Rb8+ {[%clk
0:00:23.6]} 56. Ka4 {[%clk 0:00:10.7]} 56... Ra8 {[%clk 0:00:24]} 57. Rb7+
{[%clk 0:00:10.3]} 57... Kf8 {[%clk 0:00:22.1]} 58. Kb5 {[%clk 0:00:09.3]} 58...
Kg8 {[%clk 0:00:19.8]} 59. a6 {[%clk 0:00:09.5]} 59... Rc8 {[%clk 0:00:18.8]}
60. Kb6 {[%clk 0:00:09.7]} 60... Kh7 {[%clk 0:00:17.5]} 61. a7 {[%clk
0:00:09.9]} 1-0

[Event "*** Titled Tuesday Blitz"]
[Site "Chess.com"]
[Date "2020.10.27"]
[Round "4"]
[White "Quiet_Desperation"]
[Black "Quattroporte300"]
[Result "1-0"]
[WhiteElo "2009"]
[BlackElo "2239"]
[TimeControl "180+1"]
[EndTime "10:39:53 PDT"]
[Termination "Quiet_Desperation won on time"]

1. e4 {[%clk 0:03:00.9]} 1... c5 {[%clk 0:02:59.4]} 2. Nf3 {[%clk 0:03:01.1]}
2... d6 {[%clk 0:02:59.5]} 3. d4 {[%clk 0:03:01.4]} 3... cxd4 {[%clk 0:02:59.8]}
4. Nxd4 {[%clk 0:03:02.3]} 4... Nf6 {[%clk 0:03:00.3]} 5. Nc3 {[%clk 0:03:02.5]}
5... a6 {[%clk 0:03:00.6]} 6. Bg5 {[%clk 0:02:59.9]} 6... Nbd7 {[%clk
0:02:59.9]} 7. Nb3 {[%clk 0:02:57.1]} 7... e5 {[%clk 0:02:42.1]} 8. a4 {[%clk
0:02:50.5]} 8... Be7 {[%clk 0:02:40.7]} 9. Be3 {[%clk 0:02:46.1]} 9... b6 {[%clk
0:02:37.5]} 10. g3 {[%clk 0:02:45.4]} 10... Bb7 {[%clk 0:02:37]} 11. Bg2 {[%clk
0:02:45.6]} 11... O-O {[%clk 0:02:37]} 12. O-O {[%clk 0:02:45.3]} 12... Rc8
{[%clk 0:02:37.3]} 13. Rc1 {[%clk 0:02:39.6]} 13... Rc4 {[%clk 0:02:33.8]} 14.
Nd2 {[%clk 0:02:26.8]} 14... Rc7 {[%clk 0:02:18.7]} 15. Nd5 {[%clk 0:02:25.4]}
15... Nxd5 {[%clk 0:02:17.8]} 16. exd5 {[%clk 0:02:26.3]} 16... f5 {[%clk
0:02:17.8]} 17. f4 {[%clk 0:02:11.3]} 17... e4 {[%clk 0:02:15.7]} 18. Nb3 {[%clk
0:02:05.6]} 18... Qa8 {[%clk 0:02:13.8]} 19. c4 {[%clk 0:02:04]} 19... Rfc8
{[%clk 0:02:11.2]} 20. Qe2 {[%clk 0:01:54.9]} 20... Nc5 {[%clk 0:01:54.6]} 21.
Nxc5 {[%clk 0:01:52]} 21... bxc5 {[%clk 0:01:55.5]} 22. g4 {[%clk 0:01:46.9]}
22... fxg4 {[%clk 0:01:34.1]} 23. Qxg4 {[%clk 0:01:46.2]} 23... Re8 {[%clk
0:01:26.7]} 24. Kh1 {[%clk 0:01:26.5]} 24... Bf6 {[%clk 0:01:23.9]} 25. Rc2
{[%clk 0:01:23.9]} 25... Qc8 {[%clk 0:01:21.4]} 26. f5 {[%clk 0:01:21.5]} 26...
Qd7 {[%clk 0:01:09.7]} 27. b3 {[%clk 0:01:16.3]} 27... Bc8 {[%clk 0:01:08.2]}
28. Bh3 {[%clk 0:01:15.5]} 28... Qf7 {[%clk 0:00:57.5]} 29. Rg2 {[%clk
0:01:11.3]} 29... Rb7 {[%clk 0:00:53.9]} 30. Qd1 {[%clk 0:01:09.7]} 30... Kh8
{[%clk 0:00:52.5]} 31. Rfg1 {[%clk 0:01:05.5]} 31... Qf8 {[%clk 0:00:46.4]} 32.
Bg4 {[%clk 0:00:59.5]} 32... Bd7 {[%clk 0:00:39.6]} 33. Rf1 {[%clk 0:00:49.5]}
33... Reb8 {[%clk 0:00:39.3]} 34. Bh5 {[%clk 0:00:41.8]} 34... Rxb3 {[%clk
0:00:38.7]} 35. Bf4 {[%clk 0:00:38.7]} 35... Rd3 {[%clk 0:00:36.6]} 36. Qg4
{[%clk 0:00:37.5]} 36... Rdb3 {[%clk 0:00:26.1]} 37. Rfg1 {[%clk 0:00:23.6]}
37... Rb1 {[%clk 0:00:25.4]} 38. Qg3 {[%clk 0:00:20.1]} 38... Rxg1+ {[%clk
0:00:25.2]} 39. Rxg1 {[%clk 0:00:20.2]} 39... Rb6 {[%clk 0:00:17.3]} 40. Bg6
{[%clk 0:00:16.7]} 40... Bd4 {[%clk 0:00:11.4]} 41. Qh4 {[%clk 0:00:13.5]} 41...
Qg8 {[%clk 0:00:10.7]} 42. Re1 {[%clk 0:00:12.2]} 42... e3 {[%clk 0:00:09.4]}
43. Bxe3 {[%clk 0:00:11.8]} 43... Bxe3 {[%clk 0:00:09.5]} 44. Rxe3 {[%clk
0:00:12.5]} 44... Rb1+ {[%clk 0:00:10]} 45. Kg2 {[%clk 0:00:12.3]} 45... Rb2+
{[%clk 0:00:10]} 46. Kg1 {[%clk 0:00:12.4]} 46... h6 {[%clk 0:00:09.2]} 47. Qe7
{[%clk 0:00:11.3]} 47... Rb1+ {[%clk 0:00:07.6]} 48. Kf2 {[%clk 0:00:10.9]}
48... Bxa4 {[%clk 0:00:07.3]} 49. Qxd6 {[%clk 0:00:09.7]} 49... Rb2+ {[%clk
0:00:07.1]} 50. Kg3 {[%clk 0:00:09.4]} 50... Qb8 {[%clk 0:00:06.3]} 51. Qxb8+
{[%clk 0:00:08.3]} 51... Rxb8 {[%clk 0:00:07.2]} 52. Re7 {[%clk 0:00:07.9]}
52... Kg8 {[%clk 0:00:06.8]} 53. Ra7 {[%clk 0:00:07.5]} 53... Bb3 {[%clk
0:00:05.6]} 54. Rxa6 {[%clk 0:00:05.4]} 54... Bxc4 {[%clk 0:00:06]} 55. Rd6
{[%clk 0:00:05.4]} 55... Kf8 {[%clk 0:00:05.4]} 56. Rd7 {[%clk 0:00:05.4]} 56...
Rb3+ {[%clk 0:00:04.1]} 57. Kf4 {[%clk 0:00:03.8]} 57... Rd3 {[%clk 0:00:04.5]}
58. d6 {[%clk 0:00:03.6]} 58... Bb5 {[%clk 0:00:03.5]} 59. Rd8+ {[%clk
0:00:03.6]} 1-0

[Event "*** Titled Tuesday Blitz"]
[Site "Chess.com"]
[Date "2020.10.27"]
[Round "4"]
[White "Unknown_IM"]
[Black "NotFischer"]
[Result "1-0"]
[WhiteElo "2344"]
[BlackElo "2130"]
[TimeControl "180+1"]
[EndTime "10:39:54 PDT"]
[Termination "Unknown_IM won by resignation"]

1. e4 {[%clk 0:03:00.9]} 1... d5 {[%clk 0:02:59.4]} 2. exd5 {[%clk 0:03:00]}
2... Nf6 {[%clk 0:02:59.3]} 3. Nf3 {[%clk 0:03:00.9]} 3... Bg4 {[%clk
0:02:58.9]} 4. Be2 {[%clk 0:03:00.4]} 4... Qxd5 {[%clk 0:02:58.5]} 5. O-O {[%clk
0:02:56.9]} 5... Nc6 {[%clk 0:02:58.3]} 6. h3 {[%clk 0:02:55.8]} 6... Bxf3
{[%clk 0:02:56.8]} 7. Bxf3 {[%clk 0:02:56.7]} 7... Qd7 {[%clk 0:02:56.9]} 8. d4
{[%clk 0:02:53.4]} 8... O-O-O {[%clk 0:02:54.2]} 9. Be3 {[%clk 0:02:44.3]} 9...
e5 {[%clk 0:02:53.8]} 10. dxe5 {[%clk 0:02:40.9]} 10... Qxd1 {[%clk 0:02:50.7]}
11. Rxd1 {[%clk 0:02:38.6]} 11... Rxd1+ {[%clk 0:02:50.1]} 12. Bxd1 {[%clk
0:02:37.9]} 12... Nxe5 {[%clk 0:02:51]} 13. Nd2 {[%clk 0:02:36.8]} 13... Be7
{[%clk 0:02:37.3]} 14. Be2 {[%clk 0:01:53.1]} 14... a6 {[%clk 0:02:32.2]} 15.
Nc4 {[%clk 0:01:21.2]} 15... Nc6 {[%clk 0:02:17.7]} 16. Bf3 {[%clk 0:01:14.7]}
16... Nb4 {[%clk 0:02:13.1]} 17. c3 {[%clk 0:01:02]} 17... Nc2 {[%clk
0:02:09.8]} 18. Rd1 {[%clk 0:00:48.8]} 18... Nxe3 {[%clk 0:02:08.1]} 19. Nxe3
{[%clk 0:00:49]} 19... Rd8 {[%clk 0:02:07.3]} 20. Kf1 {[%clk 0:00:48.7]} 20...
Rxd1+ {[%clk 0:02:06.1]} 21. Bxd1 {[%clk 0:00:49.6]} 21... Nd7 {[%clk
0:01:26.4]} 22. Bb3 {[%clk 0:00:37]} 22... f6 {[%clk 0:01:25.2]} 23. Nf5 {[%clk
0:00:24.1]} 23... Bf8 {[%clk 0:01:25.2]} 24. Bg8 {[%clk 0:00:23.3]} 24... h6
{[%clk 0:01:24.7]} 25. Nh4 {[%clk 0:00:20.2]} 25... Ne5 {[%clk 0:01:12.2]} 26.
Ke2 {[%clk 0:00:19.9]} 26... g5 {[%clk 0:00:59.9]} 27. Nf5 {[%clk 0:00:18.3]}
27... Kd7 {[%clk 0:00:56.6]} 28. g4 {[%clk 0:00:18.7]} 28... Ng6 {[%clk
0:00:51.6]} 29. Bb3 {[%clk 0:00:16.1]} 29... Nf4+ {[%clk 0:00:51.5]} 30. Kf3
{[%clk 0:00:16.6]} 30... Nxh3 {[%clk 0:00:49.1]} 31. Bc2 {[%clk 0:00:14.6]}
31... Nf4 {[%clk 0:00:33.8]} 32. a4 {[%clk 0:00:14.6]} 32... b5 {[%clk
0:00:27.2]} 33. axb5 {[%clk 0:00:13.3]} 33... axb5 {[%clk 0:00:28.1]} 34. Bb1
{[%clk 0:00:13]} 34... c5 {[%clk 0:00:27.6]} 35. b3 {[%clk 0:00:12.6]} 35... Kc6
{[%clk 0:00:19.7]} 36. Be4+ {[%clk 0:00:11.6]} 36... Kb6 {[%clk 0:00:19.9]} 37.
Ke3 {[%clk 0:00:11.8]} 37... h5 {[%clk 0:00:17.1]} 38. gxh5 {[%clk 0:00:09.9]}
38... Nxh5 {[%clk 0:00:18]} 39. c4 {[%clk 0:00:09.6]} 39... Nf4 {[%clk
0:00:15.4]} 40. Bd3 {[%clk 0:00:08.3]} 40... Nxd3 {[%clk 0:00:14.6]} 41. Kxd3
{[%clk 0:00:09.2]} 41... b4 {[%clk 0:00:06]} 42. Ke4 {[%clk 0:00:09.1]} 42...
Kc6 {[%clk 0:00:06.5]} 43. Ne3 {[%clk 0:00:09.7]} 43... Kd6 {[%clk 0:00:05.6]}
44. Kf5 {[%clk 0:00:10.3]} 44... Be7 {[%clk 0:00:05.2]} 45. Nd5 {[%clk
0:00:10.5]} 45... Bd8 {[%clk 0:00:05.7]} 46. Nxf6 {[%clk 0:00:10.5]} 46... Bxf6
{[%clk 0:00:04.9]} 47. Kxf6 {[%clk 0:00:11.4]} 47... g4 {[%clk 0:00:04.6]} 48.
Kf5 {[%clk 0:00:11.3]} 48... g3 {[%clk 0:00:04.7]} 49. fxg3 {[%clk 0:00:11.2]}
49... Ke7 {[%clk 0:00:05]} 50. Kg6 {[%clk 0:00:11.5]} 50... Ke6 {[%clk
0:00:05.4]} 51. g4 {[%clk 0:00:12.4]} 51... Ke5 {[%clk 0:00:06.1]} 52. g5 {[%clk
0:00:13.3]} 52... Kd4 {[%clk 0:00:07]} 53. Kf7 {[%clk 0:00:13.6]} 53... Kc3
{[%clk 0:00:07.9]} 54. g6 {[%clk 0:00:14.5]} 54... Kxb3 {[%clk 0:00:08.8]} 55.
g7 {[%clk 0:00:15.4]} 55... Ka2 {[%clk 0:00:09.7]} 56. g8=Q {[%clk 0:00:16.3]}
56... b3 {[%clk 0:00:10.6]} 57. Qa8+ {[%clk 0:00:16]} 57... Kb1 {[%clk
0:00:11.4]} 58. Qc6 {[%clk 0:00:15.2]} 58... b2 {[%clk 0:00:12.3]} 59. Qxc5
{[%clk 0:00:16]} 59... Kc1 {[%clk 0:00:13.1]} 60. Qb4 {[%clk 0:00:16.3]} 60...
b1=Q {[%clk 0:00:14]} 61. Qxb1+ {[%clk 0:00:16.7]} 61... Kxb1 {[%clk 0:00:14.9]}
62. c5 {[%clk 0:00:17.6]} 1-0